fUSD/lending_fUSD_20240925
["ID","MTS","AMOUNT","RATE_DAILY","PERIOD"]
[339167771,1727272277352,-500.0,0.00012899,2]
[339167772,1727272277362,-946.26,0.00012899,2]
[339167773,1727272277371,-500.0,0.00012899,2]
[339167774,1727272277380,-946.26,0.00012899,2]
[339167775,1727272277389,-165.6,0.00012899,2]
[339167776,1727272277399,-946.26,0.00012899,2]
[339167777,1727272277408,-946.26,0.00012899,2]
[339167778,1727272277417,-500.0,0.00012899,2]
[339167779,1727272277426,-946.26,0.00012899,2]
[339167780,1727272277435,-500.0,0.00012899,2]
[339167781,1727272277445,-946.26,0.00012899,2]
[339167782,1727272277455,-500.0,0.00012899,2]
[339167783,1727272277464,-946.26,0.00012899,2]
[339167784,1727272277473,-500.0,0.00012899,2]
[339167785,1727272277483,-946.34139566,0.00012899,2]
[339167786,1727272277492,-500.0,0.00012899,2]
[339167787,1727272277502,-500.0,0.00012899,2]
[339167788,1727272277511,-500.0,0.00012899,2]
[339167789,1727272277521,-500.0,0.00012899,2]
[339167790,1727272277533,-500.0,0.00012899,2]
[339167791,1727272277545,-500.0,0.00012899,2]
[339167792,1727272277554,-500.0,0.00012899,2]
[339167793,1727272277564,-338.38134136,0.00012899,2]
[339167794,1727272277573,-448.0,0.000129,2]
[339167795,1727272277582,-1261.0,0.000129,2]
[339167796,1727272277593,-807.0,0.000129,2]
[339167797,1727272277602,-3334.0,0.000129,2]
[339167798,1727272277611,-150.0,0.000129,2]
[339167799,1727272277621,-2363.239,0.000129,2]
[339167800,1727272277631,-226.196,0.000129,2]
[339167801,1727272277641,-267.921,0.000129,2]
[339167802,1727272277650,-907.063,0.000129,2]
[339167803,1727272277660,-142984.15193348,0.000129,2]
[339167804,1727272278143,-958498.76867105,0.000129,2]
[339167805,1727272278155,-667.76472037,0.000129,2]
[339167806,1727272278166,-326.82220256,0.000129,2]
[339167807,1727272278177,-389.54524828,0.000129,2]
[339167808,1727272278188,-641.11734377,0.000129,2]
[339167809,1727272278277,-481.27860106,0.000129,2]
[339167810,1727272278288,-642.26833621,0.000129,2]
[339167811,1727272278300,-1109.76612253,0.000129,2]
[339167812,1727272278327,-150.0,0.000129,2]
[339167813,1727272278337,-899.71999998,0.000129,2]
[339167814,1727272278349,-632.26047895,0.000129,2]
[339167815,1727272278361,-13816.91598433,0.000129,2]
[339167816,1727272278378,-2248.25259335,0.000129,2]
[339167817,1727272278389,-8284.18896675,0.000129,2]
[339167818,1727272278400,-587.70798807,0.000129,2]
[339167819,1727272278411,-290.305015,0.000129,2]
[339167820,1727272278428,-3212.85344129,0.000129,2]
[339167821,1727272278439,-1828.00561586,0.000129,2]
[339167822,1727272278450,-1657.10822718,0.000129,2]
[339167823,1727272278481,-1915.99475879,0.000129,2]
[339167824,1727272278492,-782.36919471,0.000129,2]
[339167825,1727272278503,-522.76260412,0.000129,2]
[339167826,1727272278519,-2908304.03176129,0.000129,2]
[339167827,1727272278529,-3000.0,0.000129,2]
[339167828,1727272278538,-199.1,0.000129,2]
[339167829,1727272278551,-194.0,0.000129,2]
[339167830,1727272278560,-1004.8,0.000129,2]
[339167831,1727272278570,-6852.44252332,0.000129,2]
[339167832,1727272278579,-381.122048,0.000129,2]
[339167833,1727272278590,-220.927306,0.000129,2]
[339167834,1727272278599,-381.122048,0.000129,2]
[339167835,1727272278609,-220.927306,0.000129,2]
[339167836,1727272278619,-381.122048,0.000129,2]
[339167837,1727272278629,-381.122048,0.000129,2]
[339167838,1727272278639,-381.122048,0.000129,2]
[339167839,1727272278648,-281.92975,0.000129,2]
[339167840,1727272278658,-281.92975,0.000129,2]
[339167841,1727272278668,-281.92975,0.000129,2]
[339167842,1727272278677,-281.92975,0.000129,2]
[339167843,1727272278687,-281.92975,0.000129,2]
[339167844,1727272278696,-281.92975,0.000129,2]
[339167845,1727272278706,-281.92975,0.000129,2]
[339167846,1727272278716,-281.92975,0.000129,2]
[339167847,1727272278726,-199.1,0.000129,2]
[339167848,1727272278735,-3236.5792927,0.000129,2]
[339167849,1727272278745,-151.0,0.000129,2]
[339167850,1727272278755,-151.0,0.000129,2]
[339167851,1727272278765,-151.0,0.000129,2]
[339167852,1727272278775,-151.0,0.000129,2]
[339167853,1727272278788,-345.152418,0.000129,2]
[339167854,1727272278798,-345.152418,0.000129,2]
[339167855,1727272278808,-345.152418,0.000129,2]
[339167856,1727272278818,-345.152418,0.000129,2]
[339167857,1727272278828,-345.152418,0.000129,2]
[339167858,1727272278839,-345.152418,0.000129,2]
[339167859,1727272278849,-345.152418,0.000129,2]
[339167860,1727272278859,-345.152418,0.000129,2]
[339167861,1727272278869,-158.701336,0.000129,2]
[339167862,1727272278879,-158.701336,0.000129,2]
[339167863,1727272278888,-151.0,0.000129,2]
[339167864,1727272278897,-151.0,0.000129,2]
[339167865,1727272278907,-151.0,0.000129,2]
[339167866,1727272278916,-151.0,0.000129,2]
[339167867,1727272278925,-151.0,0.000129,2]
[339167868,1727272278935,-151.0,0.000129,2]
[339167869,1727272278945,-151.0,0.000129,2]
[339167870,1727272278955,-151.0,0.000129,2]
[339167871,1727272278965,-151.0,0.000129,2]
[339167872,1727272278975,-151.0,0.000129,2]
[339167873,1727272278984,-151.0,0.000129,2]
[339167874,1727272278994,-151.0,0.000129,2]
[339167875,1727272279004,-151.0,0.000129,2]
[339167876,1727272279013,-245.732781,0.000129,2]
[339167877,1727272279023,-151.0,0.000129,2]
[339167878,1727272279033,-151.0,0.000129,2]
[339167879,1727272279043,-5800.0,0.000129,2]
[339167880,1727272279053,-494.758688,0.000129,2]
[339167881,1727272279062,-494.758688,0.000129,2]
[339167882,1727272279072,-494.758688,0.000129,2]
[339167883,1727272279082,-494.758688,0.000129,2]
[339167884,1727272279091,-151.0,0.000129,2]
[339167885,1727272279101,-151.0,0.000129,2]
[339167886,1727272279110,-151.0,0.000129,2]
[339167887,1727272279120,-151.0,0.000129,2]
[339167888,1727272279129,-151.0,0.000129,2]
[339167889,1727272279139,-151.0,0.000129,2]
[339167890,1727272279148,-151.26292,0.000129,2]
[339167891,1727272279158,-151.0,0.000129,2]
[339167892,1727272279167,-151.0,0.000129,2]
[339167893,1727272279177,-151.0,0.000129,2]
[339167894,1727272279186,-151.0,0.000129,2]
[339167895,1727272279195,-605.408298,0.000129,2]
[339167896,1727272279205,-605.408298,0.000129,2]
[339167897,1727272279214,-605.408298,0.000129,2]
[339167898,1727272279224,-605.408298,0.000129,2]
[339167899,1727272279234,-151.29531,0.000129,2]
[339167900,1727272279243,-151.0,0.000129,2]
[339167901,1727272279253,-210.960363,0.000129,2]
[339167902,1727272279263,-151.0,0.000129,2]
[339167903,1727272279272,-151.0,0.000129,2]
[339167904,1727272279283,-151.0,0.000129,2]
[339167905,1727272279293,-151.0,0.000129,2]
[339167906,1727272279302,-151.0,0.000129,2]
[339167907,1727272279312,-151.0,0.000129,2]
[339167908,1727272279321,-151.0,0.000129,2]
[339167909,1727272279331,-170.520608,0.000129,2]
[339167910,1727272279341,-151.0,0.000129,2]
[339167911,1727272279351,-151.0,0.000129,2]
[339167912,1727272279361,-151.0,0.000129,2]
[339167913,1727272279371,-1000.0,0.000129,2]
[339167914,1727272279381,-1000.0,0.000129,2]
[339167915,1727272279391,-1000.0,0.000129,2]
[339167916,1727272279401,-1000.0,0.000129,2]
[339167917,1727272279411,-1000.0,0.000129,2]
[339167918,1727272279420,-400.54342593,0.000129,2]
[339167919,1727272279429,-1000.0,0.000129,2]
[339167920,1727272279439,-1000.0,0.000129,2]
[339167921,1727272279449,-1000.0,0.000129,2]
[339167922,1727272279459,-1000.0,0.000129,2]
[339167923,1727272279468,-1000.0,0.000129,2]
[339167924,1727272279477,-1000.0,0.000129,2]
[339167925,1727272279487,-1000.0,0.000129,2]
[339167926,1727272279497,-1000.0,0.000129,2]
[339167927,1727272279507,-1000.0,0.000129,2]
[339167928,1727272279517,-1000.0,0.000129,2]
[339167929,1727272279526,-1000.0,0.000129,2]
[339167930,1727272279537,-1000.0,0.000129,2]
[339167931,1727272279550,-1000.0,0.000129,2]
[339167932,1727272279561,-1000.0,0.000129,2]
[339167933,1727272279570,-1000.0,0.000129,2]
[339167934,1727272279580,-177.348715,0.000129,2]
[339167935,1727272279590,-177.348715,0.000129,2]
[339167936,1727272279600,-177.348715,0.000129,2]
[339167937,1727272279609,-177.348715,0.000129,2]
[339167938,1727272279619,-389.27643,0.000129,2]
[339167939,1727272279629,-389.27643,0.000129,2]
[339167940,1727272279639,-389.27643,0.000129,2]
[339167941,1727272279648,-389.27643,0.000129,2]
[339167942,1727272279657,-151.0,0.000129,2]
[339167943,1727272279667,-181.030612,0.000129,2]
[339167944,1727272279676,-151.0,0.000129,2]
[339167945,1727272279685,-181.030612,0.000129,2]
[339167946,1727272279695,-181.030612,0.000129,2]
[339167947,1727272279704,-181.030612,0.000129,2]
[339167948,1727272279715,-195.059077,0.000129,2]
[339167949,1727272279724,-195.059077,0.000129,2]
[339167950,1727272279735,-246.559503,0.000129,2]
[339167951,1727272279744,-246.559503,0.000129,2]
[339167952,1727272279754,-246.559503,0.000129,2]
[339167953,1727272279764,-246.559503,0.000129,2]
[339167954,1727272279773,-151.0,0.000129,2]
[339167955,1727272279786,-151.0,0.000129,2]
[339167956,1727272279796,-151.0,0.000129,2]
[339167957,1727272279805,-151.0,0.000129,2]
[339167958,1727272279815,-341.408375,0.000129,2]
[339167959,1727272279824,-341.408375,0.000129,2]
[339167960,1727272279833,-341.408375,0.000129,2]
[339167961,1727272279844,-341.408375,0.000129,2]
[339167962,1727272279853,-5800.0,0.000129,2]
[339167963,1727272279863,-173.18873129,0.000129,2]
[339167964,1727272279872,-1650.02030359,0.000129,2]
[339167965,1727272279881,-206.0,0.000129,2]
[339167966,1727272279891,-206.0,0.000129,2]
[339167967,1727272279900,-206.0,0.000129,2]
[339167968,1727272279909,-206.0,0.000129,2]
[339167969,1727272279918,-206.0,0.000129,2]
[339167970,1727272279928,-206.0,0.000129,2]
[339167971,1727272279937,-206.0,0.000129,2]
[339167972,1727272279946,-207.0,0.000129,2]
[339167973,1727272279955,-207.0,0.000129,2]
[339167974,1727272279965,-202.0,0.000129,2]
[339167975,1727272279974,-207.0,0.000129,2]
[339167976,1727272279983,-207.0,0.000129,2]
[339167977,1727272279992,-207.0,0.000129,2]
[339167978,1727272280002,-207.0,0.000129,2]
[339167979,1727272280011,-207.0,0.000129,2]
[339167980,1727272280020,-215.0,0.000129,2]
[339167981,1727272280031,-201.0,0.000129,2]
[339167982,1727272280041,-201.0,0.000129,2]
[339167983,1727272280050,-201.0,0.000129,2]
[339167984,1727272280059,-215.0,0.000129,2]
[339167985,1727272280069,-201.0,0.000129,2]
[339167986,1727272280203,-215.0,0.000129,2]
[339167987,1727272280213,-201.0,0.000129,2]
[339167988,1727272280222,-215.0,0.000129,2]
[339167989,1727272280231,-215.0,0.000129,2]
[339167990,1727272280240,-215.0,0.000129,2]
[339167991,1727272280250,-215.0,0.000129,2]
[339167992,1727272280259,-201.0,0.000129,2]
[339167993,1727272280268,-201.0,0.000129,2]
[339167994,1727272280277,-210.0,0.000129,2]
[339167995,1727272280289,-210.0,0.000129,2]
[339167996,1727272280298,-210.0,0.000129,2]
[339167997,1727272280309,-207.0,0.000129,2]
[339167998,1727272280318,-150.0,0.000129,2]
[339167999,1727272280328,-4095.98,0.000129,2]
[339168000,1727272280338,-318.25724982,0.000129,2]
[339168001,1727272280348,-318.25724982,0.000129,2]
[339168002,1727272280357,-318.25724982,0.000129,2]
[339168003,1727272280367,-318.25724982,0.000129,2]
[339168004,1727272280377,-318.25724982,0.000129,2]
[339168005,1727272280387,-318.25724982,0.000129,2]
[339168006,1727272280396,-318.25724982,0.000129,2]
[339168007,1727272280406,-318.25724982,0.000129,2]
[339168008,1727272280416,-318.25724982,0.000129,2]
[339168009,1727272280425,-318.25724982,0.000129,2]
[339168010,1727272280434,-318.25724982,0.000129,2]
[339168011,1727272280444,-318.25724982,0.000129,2]
[339168012,1727272280454,-318.25724982,0.000129,2]
[339168013,1727272280463,-318.25724982,0.000129,2]
[339168014,1727272280472,-318.25724982,0.000129,2]
[339168015,1727272280482,-318.25724982,0.000129,2]
[339168016,1727272280492,-318.25724982,0.000129,2]
[339168017,1727272280501,-318.25724982,0.000129,2]
[339168018,1727272280510,-318.25724982,0.000129,2]
[339168019,1727272280520,-318.75,0.000129,2]
[339168020,1727272280531,-1273.10399928,0.000129,2]
[339168021,1727272280540,-1273.10399928,0.000129,2]
[339168022,1727272280553,-1273.10399928,0.000129,2]
[339168023,1727272280562,-1273.10399928,0.000129,2]
[339168024,1727272280571,-1273.10399928,0.000129,2]
[339168025,1727272280581,-1273.10399928,0.000129,2]
[339168026,1727272280591,-1273.10399928,0.000129,2]
[339168027,1727272280601,-1273.10399928,0.000129,2]
[339168028,1727272280610,-1273.10399928,0.000129,2]
[339168029,1727272280622,-1273.10399928,0.000129,2]
[339168030,1727272280632,-1273.10399928,0.000129,2]
[339168031,1727272280642,-1273.10399928,0.000129,2]
[339168032,1727272280651,-1273.10399928,0.000129,2]
[339168033,1727272280660,-1273.10399928,0.000129,2]
[339168034,1727272280670,-1273.10399928,0.000129,2]
[339168035,1727272280680,-1273.10399928,0.000129,2]
[339168036,1727272280689,-1273.10399928,0.000129,2]
[339168037,1727272280699,-1273.10399928,0.000129,2]
[339168038,1727272280708,-1273.10399928,0.000129,2]
[339168039,1727272280717,-1273.6,0.000129,2]
[339168040,1727272280727,-181.86495928,0.000129,2]
[339168041,1727272280736,-181.86495928,0.000129,2]
[339168042,1727272280746,-181.86495928,0.000129,2]
[339168043,1727272280755,-182.36,0.000129,2]
[339168044,1727272280764,-153.22838676,0.000129,2]
[339168045,1727272280774,-153.22838676,0.000129,2]
[339168046,1727272280784,-153.22838676,0.000129,2]
[339168047,1727272280796,-153.22838676,0.000129,2]
[339168048,1727272280806,-153.22838676,0.000129,2]
[339168049,1727272280815,-153.22838676,0.000129,2]
[339168050,1727272280825,-153.22838676,0.000129,2]
[339168051,1727272280834,-153.22838676,0.000129,2]
[339168052,1727272280843,-153.22838676,0.000129,2]
[339168053,1727272280853,-153.22838676,0.000129,2]
[339168054,1727272280862,-153.22838676,0.000129,2]
[339168055,1727272280871,-153.22838676,0.000129,2]
[339168056,1727272280881,-153.22838676,0.000129,2]
[339168057,1727272280891,-153.22838676,0.000129,2]
[339168058,1727272280901,-153.22838676,0.000129,2]
[339168059,1727272280911,-153.22838676,0.000129,2]
[339168060,1727272280922,-153.22838676,0.000129,2]
[339168061,1727272280932,-153.22838676,0.000129,2]
[339168062,1727272280941,-153.72,0.000129,2]
[339168063,1727272280951,-156.91057634,0.000129,2]
[339168064,1727272280961,-156.91057634,0.000129,2]
[339168065,1727272280970,-156.91057634,0.000129,2]
[339168066,1727272280981,-156.91057634,0.000129,2]
[339168067,1727272280993,-156.91057634,0.000129,2]
[339168068,1727272281004,-156.91057634,0.000129,2]
[339168069,1727272281014,-157.41,0.000129,2]
[339168070,1727272281023,-219.74980687,0.000129,2]
[339168071,1727272281034,-219.74980687,0.000129,2]
[339168072,1727272281043,-219.74980687,0.000129,2]
[339168073,1727272281052,-219.74980687,0.000129,2]
[339168074,1727272281061,-219.74980687,0.000129,2]
[339168075,1727272281071,-219.74980687,0.000129,2]
[339168076,1727272281080,-219.74980687,0.000129,2]
[339168077,1727272281090,-219.74980687,0.000129,2]
[339168078,1727272281100,-219.74980687,0.000129,2]
[339168079,1727272281109,-219.74980687,0.000129,2]
[339168080,1727272281119,-219.74980687,0.000129,2]
[339168081,1727272281129,-219.74980687,0.000129,2]
[339168082,1727272281138,-219.74980687,0.000129,2]
[339168083,1727272281148,-219.74980687,0.000129,2]
[339168084,1727272281157,-219.74980687,0.000129,2]
[339168085,1727272281166,-219.74980687,0.000129,2]
[339168086,1727272281176,-219.74980687,0.000129,2]
[339168087,1727272281185,-219.74980687,0.000129,2]
[339168088,1727272281194,-219.74980687,0.000129,2]
[339168089,1727272281203,-220.24,0.000129,2]
[339168090,1727272281213,-1443.86471502,0.000129,2]
[339168091,1727272281222,-489.2,0.000129,2]
[339168092,1727272281231,-240.771783,0.000129,2]
[339168093,1727272281241,-600.0,0.000129,2]
[339168094,1727272281251,-150.0,0.000129,2]
[339168095,1727272281260,-1622.0,0.000129,2]
[339168096,1727272281269,-155.35183,0.00012901,2]
[339168097,1727272281278,-172.654116,0.00012901,2]
[339168098,1727272281291,-29175.0,0.00012904,2]
[339168099,1727272281300,-150.0,0.00012905,2]
[339168100,1727272281309,-202.0,0.0001291,2]
[339168101,1727272281319,-330.0,0.0001291,2]
[339168102,1727272281329,-204.0,0.0001291,2]
[339168103,1727272281339,-218.0,0.0001291,2]
[339168104,1727272281348,-203.0,0.0001291,2]
[339168105,1727272281358,-150.0,0.00012927,2]
[339168106,1727272281367,-1622.0,0.00012927,2]
[339168107,1727272281377,-206.0,0.0001295,2]
[339168108,1727272281386,-207.0,0.0001295,2]
[339168109,1727272281395,-215.0,0.0001295,2]
[339168110,1727272281405,-201.0,0.0001295,2]
[339168111,1727272281414,-175.88,0.00012951,2]
[339168112,1727272281424,-150.0,0.00012955,2]
[339168113,1727272281433,-1622.0,0.00012955,2]
[339168114,1727272281443,-150.0,0.00012959,2]
[339168115,1727272281452,-47611.63681395,0.00012961,2]
[339168116,1727272281461,-150.0,0.00012961,2]
[339168117,1727272281470,-150.0,0.00012963,2]
[339168118,1727272281479,-400.0,0.0001297,2]
[339168119,1727272281489,-400.0,0.0001297,2]
[339168120,1727272281498,-150.0,0.0001297,2]
[339168121,1727272281508,-412.33224577,0.00012973,2]
[339168122,1727272281517,-500.0,0.00012973,2]
[339168123,1727272281527,-500.0,0.00012973,2]
[339168124,1727272281540,-500.0,0.00012973,2]
[339168125,1727272281554,-500.0,0.00012973,2]
[339168126,1727272281563,-500.0,0.00012973,2]
[339168127,1727272281573,-500.0,0.00012973,2]
[339168128,1727272281582,-281.92975,0.00012973,2]
[339168129,1727272281592,-281.92975,0.00012973,2]
[339168130,1727272281601,-151.0,0.00012973,2]
[339168131,1727272281611,-345.152418,0.00012973,2]
[339168132,1727272281621,-345.152425,0.00012973,2]
[339168133,1727272281630,-150.0,0.00012973,2]
[339168134,1727272281639,-150.0,0.00012975,2]
[339168135,1727272281649,-152.0,0.00012977,16]
[339168136,1727272281658,-150.0,0.00012982,2]
[339168137,1727272281668,-1622.0,0.00012982,2]
[339168138,1727272281678,-1015.37368057,0.00012987,2]
[339168139,1727272281687,-1849.32686978,0.0001299,2]
[339168140,1727272281697,-202.0,0.0001299,2]
[339168141,1727272281707,-330.0,0.0001299,2]
[339168142,1727272281717,-204.0,0.0001299,2]
[339168143,1727272281727,-222.0,0.0001299,2]
[339168144,1727272281736,-206.0,0.0001299,2]
[339168145,1727272281746,-218.0,0.0001299,2]
[339168146,1727272281755,-203.0,0.0001299,2]
[339168147,1727272281765,-500.0,0.00012997,2]
[339168148,1727272281773,-675.0,0.00012997,2]
[339168149,1727272281788,-6491.35191222,0.00012998,2]
[339168150,1727272281797,-204100.66678326,0.00013,2]
[339168151,1727272281806,-150.0,0.00013,2]
[339168152,1727272281815,-150.63692803,0.00013,3]
[339168153,1727272281826,-20490.0,0.00013,2]
[339168154,1727272281835,-4389397.60674603,0.00013,2]
[339168155,1727272281852,-110524.25498921,0.00013,2]
[339168156,1727272281864,-39982.21591552,0.00013,2]
[339168157,1727272281875,-119614.76461552,0.00013,2]
[339168158,1727272281887,-575.77939272,0.00013,2]
[339168159,1727272281898,-93740.79375558,0.00013,2]
[339168160,1727272281909,-624.24161968,0.00013,2]
[339168161,1727272281920,-2960.45,0.00013,2]
[339168162,1727272281931,-1030.74605316,0.00013,2]
[339168163,1727272281943,-690.25184006,0.00013,2]
[339168164,1727272281955,-255.43696774,0.00013,2]
[339168165,1727272281966,-6052.1147381,0.00013,2]
[339168166,1727272282372,-500.0,0.00012886,2]
[339168167,1727272282382,-500.0,0.00012886,2]
[339168168,1727272282391,-270.0,0.00012886,2]
[339168169,1727272282403,-52.38156009,0.00012886,2]
[339168170,1727272282413,-500.0,0.00012887,2]
[339168171,1727272282422,-517.74,0.00012887,2]
[339168172,1727272282431,-30.18731874,0.00012892,2]
[339168173,1727272282452,-469.81268126,0.00012892,2]
[339168174,1727272282462,-154.4157898,0.00012892,2]
[339168175,1727272282473,-345.5842102,0.00012892,2]
[339168176,1727272282483,-500.0,0.00012894,2]
[339168177,1727272282492,-158.10943358,0.00012894,2]
[339168178,1727272282523,-359.63056642,0.00012894,2]
[339168179,1727272282534,-500.0,0.00012895,2]
[339168180,1727272282547,-500.0,0.00012895,2]
[339168181,1727272282558,-517.74,0.00012896,2]
[339168182,1727272282567,-517.74,0.00012897,2]
[339168183,1727272282577,-517.74,0.00012898,2]
[339168184,1727272282587,-517.74,0.00012899,2]
[339168185,1727272282596,-1081.0,0.000129,2]
[339168186,1727272282606,-312619.72293843,0.00013,2]
[339168187,1727272282615,-446153.9303982,0.00013,2]
[339168188,1727272282629,-639.60872282,0.00013,2]
[339168189,1727272282646,-517.74,0.00012899,2]
[339168190,1727272282655,-129.31962503,0.00013,2]
[339168191,1727272282667,-5743.67390475,0.00013,2]
[339168192,1727272282678,-5525.75483118,0.00013,2]
[339168193,1727272282689,-658.38368292,0.00013,2]
[339168194,1727272282709,-659.25319494,0.00013,2]
[339168195,1727272282904,-510.32078784,0.00012899,2]
[339168196,1727272282916,-7.41921216,0.00012899,2]
[339168197,1727272282926,-517.74,0.00012899,2]
[339168198,1727272282935,-170.19622046,0.00012899,2]
[339168199,1727272282947,-347.54377954,0.00012899,2]
[339168200,1727272282957,-517.74,0.00012899,2]
[339168201,1727272282966,-517.74,0.00012899,2]
[339168202,1727272282976,-517.74,0.00012899,2]
[339168203,1727272282985,-517.74,0.00012899,2]
[339168204,1727272282995,-517.74,0.00012899,2]
[339168205,1727272283004,-517.74,0.00012899,2]
[339168206,1727272283014,-8243.34556572,0.00013,2]
[339168207,1727272283027,-609.67367557,0.00013,2]
[339168208,1727272283040,-308.52858885,0.00013,2]
[339168209,1727272283055,-2406.3416853,0.00013,2]
[339168210,1727272283076,-517.74,0.00012899,2]
[339168211,1727272283086,-125.40041376,0.00013,2]
[339168212,1727272283110,-317.88044,0.00013,2]
[339168213,1727272283121,-646.70856275,0.00013,2]
[339168214,1727272283133,-63296.96101664,0.00013,2]
[339168215,1727272309686,150.0,0.00010082,2]
[339168216,1727272309708,227.92060256,0.00010082,2]
[339168217,1727272309728,122.07939744,0.00010082,2]
[339168218,1727272333928,500.0,0.00010082,2]
[339168220,1727272369980,500.0,0.00010082,2]
[339168221,1727272400462,200.0,0.00020938,120]
[339168222,1727272474239,154.58,9.938e-05,2]
[339168223,1727272524893,156.93,0.00010959,2]
[339168309,1727272816679,407.80686791,0.00011,2]
[339168311,1727272949926,1050.0,0.00011,2]
[339168312,1727273033648,158.55,9.912e-05,2]
[339168313,1727273088068,310.0,0.00012,120]
[339168315,1727273195890,-356.02,0.00013918,30]
[339168316,1727273217768,500.0,0.00010082,2]
[339168317,1727273222684,154.48254,0.0001089,2]
[339168328,1727273431590,-500.0,0.00011452,2]
[339168329,1727273431600,-250.0,0.00011784,2]
[339168330,1727273431610,-54.35470988,0.00011786,2]
[339168331,1727273431626,-244.27529012,0.00011786,2]
[339168332,1727273431636,-154.54,0.00011794,2]
[339168333,1727273431645,-1000.0,0.00011816,2]
[339168334,1727273431655,-1332.45,0.00011827,2]
[339168335,1727273431664,-250.0,0.0001183,2]
[339168336,1727273431673,-186.2,0.00011846,2]
[339168337,1727273431682,-158.55,0.00012176,2]
[339168338,1727273431692,-273.98470988,0.00012253,2]
[339168339,1727273431716,-814.99724662,0.00012253,2]
[339168340,1727273431742,-729.91062803,0.00012253,2]
[339168341,1727273431751,-231.01098556,0.00012253,2]
[339168342,1727273431846,-768.97901444,0.00012253,2]
[339168343,1727273431855,-150.99,0.00012253,2]
[339168344,1727273431864,-300.0,0.00012286,2]
[339168345,1727273431874,-172.654119,0.00012287,2]
[339168346,1727273431882,-147.03419366,0.00012287,2]
[339168347,1727273431937,-683.62580634,0.00012287,2]
[339168348,1727273431946,-199.722846,0.00012287,2]
[339168349,1727273431956,-167.28,0.00012445,2]
[339168350,1727273431965,-150.0,0.000125,2]
[339168351,1727273431974,-150.0,0.000125,2]
[339168352,1727273431983,-150.0,0.000125,2]
[339168353,1727273431992,-150.0,0.000125,2]
[339168354,1727273432001,-150.0,0.000125,2]
[339168355,1727273432010,-150.0,0.000125,2]
[339168356,1727273432019,-150.0,0.000125,2]
[339168357,1727273432029,-150.0,0.000125,2]
[339168358,1727273432039,-242.23922231,0.0001266,2]
[339168359,1727273432050,-142.25589281,0.0001266,2]
[339168360,1727273432060,-509.5205,0.00012705,2]
[339168361,1727273432069,-150.0,0.00012719,2]
[339168362,1727273432081,-294.03,0.0001272,2]
[339168364,1727273432091,-810.0,0.0001272,2]
[339168365,1727273432099,-558.0,0.0001272,2]
[339168366,1727273432108,-932.0,0.0001272,2]
[339168367,1727273432117,-438.223,0.0001272,2]
[339168368,1727273432127,-804.0,0.0001272,2]
[339168369,1727273432136,-150.0,0.0001272,2]